[Event "Championnat du monde jeunes U12F"]
[Date "2024.11.24"]
[White "Tong Thai Hoang An"]
[Black "Illes-Nagy, Nora"]
[WhiteElo "1869"]
[BlackElo "1803"]
[Round "9.6"]
[Result "1-0"]
[TimeControl "5400+30"]

1. d4 {[%clk 1:30:46]} 1... d5 {[%clk 1:30:55]} 2. c4 {[%clk 1:31:03]} 2... c6
{[%clk 1:31:15]} 3. Nf3 {[%clk 1:31:20]} 3... Nf6 {[%clk 1:31:35]} 4. e3 {[%clk
1:31:30]} 4... Bg4 {[%clk 1:31:32]} 5. h3 {[%clk 1:31:36]} 5... Bh5 {[%clk
1:31:55]} 6. cxd5 {[%clk 1:31:17]} 6... cxd5 {[%clk 1:31:50]} 7. g4 {[%clk
1:31:31]} 7... Bg6 {[%clk 1:31:49]} 8. Ne5 {[%clk 1:31:40]} 8... e6 {[%clk
1:28:10]} 9. Nc3 {[%clk 1:23:23]} 9... Nfd7 {[%clk 1:19:18]} 10. Nxg6 {[%clk
1:23:18]} 10... hxg6 {[%clk 1:19:35]} 11. Bd3 {[%clk 1:23:16]} 11... Nc6 {[%clk
1:17:56]} 12. Bd2 {[%clk 1:22:39]} 12... a6 {[%clk 1:17:07]} 13. Kf1 {[%clk
1:14:12]} 13... Bd6 {[%clk 1:10:43]} 14. Rc1 {[%clk 1:12:44]} 14... Bc7 {[%clk
1:02:24]} 15. Kg2 {[%clk 1:07:38]} 15... f5 {[%clk 0:59:39]} 16. f4 {[%clk
0:59:46]} 16... Nf6 {[%clk 0:54:15]} 17. Na4 {[%clk 0:54:23]} 17... Nd7 {[%clk
0:49:22]} 18. b4 {[%clk 0:50:03]} 18... Bd6 {[%clk 0:46:13]} 19. Nc5 {[%clk
0:33:44]} 19... Nxc5 {[%clk 0:44:45]} 20. dxc5 {[%clk 0:33:23]} 20... Bc7 {[%clk
0:42:53]} 21. a4 {[%clk 0:31:16]} 21... Rc8 {[%clk 0:36:41]} 22. b5 {[%clk
0:26:54]} 22... axb5 {[%clk 0:36:44]} 23. axb5 {[%clk 0:27:20]} 23... Ne7 {[%clk
0:36:16]} 24. b6 {[%clk 0:22:15]} 24... Bb8 {[%clk 0:36:39]} 25. g5 {[%clk
0:16:14]} 25... Nc6 {[%clk 0:34:45]} 26. Bb5 {[%clk 0:13:38]} 26... Kf7 {[%clk
0:30:36]} 27. h4 {[%clk 0:10:29]} 27... Rh5 {[%clk 0:20:00]} 28. Be2 {[%clk
0:10:10]} 28... Rh8 {[%clk 0:20:13]} 29. h5 {[%clk 0:10:25]} 29... gxh5 {[%clk
0:20:02]} 30. Rxh5 {[%clk 0:10:07]} 30... g6 {[%clk 0:19:13]} 31. Rxh8 {[%clk
0:10:21]} 31... Qxh8 {[%clk 0:19:38]} 32. Bc3 {[%clk 0:10:36]} 32... d4 {[%clk
0:18:56]} 33. Bxd4 {[%clk 0:09:32]} 33... Nxd4 {[%clk 0:19:00]} 34. Qxd4 {[%clk
0:09:56]} 34... Qxd4 {[%clk 0:19:20]} 35. exd4 {[%clk 0:10:08]} 35... Bxf4
{[%clk 0:19:38]} 36. Ra1 {[%clk 0:07:51]} 36... Bxg5 {[%clk 0:11:46]} 37. Ra7
{[%clk 0:08:01]} 37... Rb8 {[%clk 0:11:57]} 38. c6 {[%clk 0:06:59]} 38... Bf4
{[%clk 0:08:33]} 39. c7 {[%clk 0:06:54]} 39... Rc8 {[%clk 0:08:54]} 40. Ba6
{[%clk 0:05:22]} 40... bxa6 {[%clk 0:04:27]} 41. b7 {[%clk 0:05:41]} 41... Rxc7
{[%clk 0:03:52]} 42. b8=Q {[%clk 0:05:56]} 42... Rxa7 {[%clk 0:03:57]} 43. Qxa7+
{[%clk 0:06:21]} 43... Kf6 {[%clk 0:03:52]} 44. Qxa6 {[%clk 0:06:45]} 44... Kf7
{[%clk 0:04:01]} 45. Qb7+ {[%clk 0:07:06]} 45... Kf6 {[%clk 0:04:20]} 46. Qc6
{[%clk 0:07:32]} 46... Ke7 {[%clk 0:04:34]} 47. d5 {[%clk 0:07:35]} 47... Bd6
{[%clk 0:04:44]} 48. Qb7+ {[%clk 0:07:52]} 48... Kf6 {[%clk 0:05:01]} 49. Qd7
{[%clk 0:08:17]} 49... exd5 {[%clk 0:05:13]} 50. Qxd6+ {[%clk 0:08:38]} 50...
Kg5 {[%clk 0:05:41]} 51. Kf3 {[%clk 0:09:02]} 1-0

[Variant "Standard"]
[Site "Europe Echecs"]

[Event "Championnat du monde jeunes U12F"]
[Date "2024.11.24"]
[White "Tran Le Vy"]
[Black "Pavithra R V"]
[WhiteElo "1854"]
[BlackElo "1854"]
[Round "9.7"]
[Result "1/2-1/2"]
[TimeControl "5400+30"]

1. e4 {[%clk 1:30:32]} 1... c5 {[%clk 1:30:16]} 2. Nf3 {[%clk 1:30:43]} 2... Nc6
{[%clk 1:30:38]} 3. c3 {[%clk 1:31:02]} 3... d5 {[%clk 1:30:43]} 4. exd5 {[%clk
1:31:21]} 4... Qxd5 {[%clk 1:31:10]} 5. d4 {[%clk 1:31:40]} 5... Bg4 {[%clk
1:31:21]} 6. Be2 {[%clk 1:30:19]} 6... cxd4 {[%clk 1:31:10]} 7. cxd4 {[%clk
1:29:40]} 7... e6 {[%clk 1:30:51]} 8. O-O {[%clk 1:29:24]} 8... Nf6 {[%clk
1:30:14]} 9. Nc3 {[%clk 1:28:12]} 9... Qa5 {[%clk 1:28:44]} 10. Be3 {[%clk
1:26:14]} 10... Bb4 {[%clk 1:26:38]} 11. Qb3 {[%clk 1:24:16]} 11... O-O {[%clk
1:23:27]} 12. a3 {[%clk 1:19:42]} 12... Bxc3 {[%clk 1:11:38]} 13. bxc3 {[%clk
1:19:48]} 13... Qc7 {[%clk 1:10:39]} 14. Rac1 {[%clk 1:00:57]} 14... e5 {[%clk
0:58:45]} 15. Rfe1 {[%clk 0:55:46]} 15... e4 {[%clk 0:40:10]} 16. Nd2 {[%clk
0:54:36]} 16... Bxe2 {[%clk 0:40:26]} 17. Rxe2 {[%clk 0:54:56]} 17... Ng4 {[%clk
0:40:51]} 18. g3 {[%clk 0:55:10]} 18... Qa5 {[%clk 0:22:16]} 19. h3 {[%clk
0:37:01]} 19... Nxe3 {[%clk 0:21:10]} 20. fxe3 {[%clk 0:26:38]} 20... Qh5 {[%clk
0:20:17]} 21. Rh2 {[%clk 0:26:48]} 21... Qg5 {[%clk 0:20:39]} 22. Nf1 {[%clk
0:21:39]} 22... b6 {[%clk 0:17:00]} 23. Rf2 {[%clk 0:18:53]} 23... Rac8 {[%clk
0:14:29]} 24. Qa4 {[%clk 0:17:32]} 24... b5 {[%clk 0:11:04]} 25. Qc2 {[%clk
0:17:38]} 25... f5 {[%clk 0:10:21]} 26. Qb3+ {[%clk 0:17:59]} 26... Kh8 {[%clk
0:10:40]} 27. Rf4 {[%clk 0:16:17]} 27... a6 {[%clk 0:10:25]} 28. Qe6 {[%clk
0:15:57]} 28... Qf6 {[%clk 0:06:49]} 29. Qxf6 {[%clk 0:12:12]} 29... Rxf6 {[%clk
0:07:17]} 30. c4 {[%clk 0:12:13]} 30... bxc4 {[%clk 0:06:24]} 31. Rxc4 {[%clk
0:12:37]} 31... Ne7 {[%clk 0:06:50]} 32. Rxc8+ {[%clk 0:11:41]} 32... Nxc8
{[%clk 0:07:01]} 33. g4 {[%clk 0:12:05]} 33... g6 {[%clk 0:06:57]} 34. gxf5
{[%clk 0:12:26]} 34... gxf5 {[%clk 0:07:21]} 35. Nd2 {[%clk 0:11:41]} 35... Nb6
{[%clk 0:07:02]} 36. Rf1 {[%clk 0:11:36]} 36... Nd5 {[%clk 0:05:33]} 37. Kf2
{[%clk 0:11:15]} 37... Rc6 {[%clk 0:05:34]} 38. Ke2 {[%clk 0:11:31]} 38... Ne7
{[%clk 0:04:45]} 39. Rb1 {[%clk 0:10:20]} 39... Kg7 {[%clk 0:04:40]} 40. Rb7
{[%clk 0:06:16]} 40... Kf7 {[%clk 0:05:02]} 41. Nb1 {[%clk 0:05:51]} 41... Kf6
{[%clk 0:03:22]} 42. Kd2 {[%clk 0:06:12]} 42... h6 {[%clk 0:03:04]} 43. Nc3
{[%clk 0:05:43]} 43... Rd6 {[%clk 0:03:15]} 44. h4 {[%clk 0:05:21]} 44... Ke6
{[%clk 0:00:45]} 45. a4 {[%clk 0:05:08]} 45... Rc6 {[%clk 0:00:37]} 46. a5
{[%clk 0:05:08]} 46... Rd6 {[%clk 0:00:33]} 47. Na4 {[%clk 0:05:09]} 47... Kf6
{[%clk 0:00:37]} 48. Nc5 {[%clk 0:03:52]} 48... Nd5 {[%clk 0:01:04]} 49. Ra7
{[%clk 0:02:54]} 49... Nb4 {[%clk 0:01:29]} 50. Nd7+ {[%clk 0:02:56]} 50... Kg6
{[%clk 0:01:52]} 51. Ne5+ {[%clk 0:03:21]} 51... Kh5 {[%clk 0:01:31]} 52. Rf7
{[%clk 0:03:46]} 52... Kxh4 {[%clk 0:01:26]} 53. Rxf5 {[%clk 0:04:13]} 53... Nd5
{[%clk 0:01:53]} 54. Nf7 {[%clk 0:04:36]} 54... Rf6 {[%clk 0:01:25]} 55. Nxh6
{[%clk 0:04:58]} 55... Rxf5 {[%clk 0:01:37]} 56. Nxf5+ {[%clk 0:05:17]} 56...
Kg4 {[%clk 0:02:02]} 57. Nd6 {[%clk 0:05:14]} 57... Kf3 {[%clk 0:02:19]} 58. Nc4
{[%clk 0:04:45]} 58... Kf2 {[%clk 0:02:48]} 59. Nd6 {[%clk 0:03:21]} 59... Kf3
{[%clk 0:03:13]} 60. Nf5 {[%clk 0:03:18]} 60... Kf2 {[%clk 0:03:36]} 1/2-1/2

[Variant "Standard"]
[Site "Europe Echecs"]

[Event "Championnat du monde jeunes U12F"]
[Date "2024.11.24"]
[White "Zavivaeva, Kristina"]
[Black "Qiu, Laurie"]
[WhiteElo "1775"]
[BlackElo "1994"]
[Round "9.8"]
[Result "1/2-1/2"]
[TimeControl "5400+30"]

1. e4 {[%clk 1:30:59]} 1... c5 {[%clk 1:30:55]} 2. Nf3 {[%clk 1:31:14]} 2... Nc6
{[%clk 1:31:15]} 3. d4 {[%clk 1:31:36]} 3... cxd4 {[%clk 1:31:41]} 4. Nxd4
{[%clk 1:31:58]} 4... g6 {[%clk 1:32:07]} 5. Nc3 {[%clk 1:32:21]} 5... Bg7
{[%clk 1:32:23]} 6. Be3 {[%clk 1:32:42]} 6... Nf6 {[%clk 1:32:41]} 7. Nb3 {[%clk
1:33:04]} 7... d6 {[%clk 1:28:52]} 8. f3 {[%clk 1:31:32]} 8... O-O {[%clk
1:26:31]} 9. Qd2 {[%clk 1:31:12]} 9... Be6 {[%clk 1:22:46]} 10. O-O-O {[%clk
1:30:29]} 10... a5 {[%clk 1:18:48]} 11. a4 {[%clk 1:26:55]} 11... Rc8 {[%clk
1:15:38]} 12. Kb1 {[%clk 1:26:16]} 12... Ne5 {[%clk 1:06:43]} 13. Qf2 {[%clk
1:21:40]} 13... Nfd7 {[%clk 1:02:49]} 14. g4 {[%clk 1:15:54]} 14... Bxb3 {[%clk
0:51:08]} 15. cxb3 {[%clk 1:16:00]} 15... Nc5 {[%clk 0:50:51]} 16. Ka2 {[%clk
1:09:53]} 16... b6 {[%clk 0:43:34]} 17. Bd4 {[%clk 1:04:20]} 17... Qd7 {[%clk
0:36:28]} 18. h4 {[%clk 0:58:44]} 18... Nc6 {[%clk 0:33:56]} 19. Bxg7 {[%clk
0:58:04]} 19... Nb4+ {[%clk 0:34:02]} 20. Kb1 {[%clk 0:57:50]} 20... Kxg7 {[%clk
0:33:37]} 21. Bc4 {[%clk 0:57:34]} 21... Qc6 {[%clk 0:26:43]} 22. h5 {[%clk
0:52:51]} 22... f6 {[%clk 0:21:48]} 23. Qe3 {[%clk 0:33:32]} 23... g5 {[%clk
0:20:32]} 24. Nb5 {[%clk 0:31:47]} 24... Qb7 {[%clk 0:16:01]} 25. Nd4 {[%clk
0:28:17]} 25... h6 {[%clk 0:15:17]} 26. Rc1 {[%clk 0:24:03]} 26... Kh7 {[%clk
0:13:01]} 27. Rhe1 {[%clk 0:23:08]} 27... Rfd8 {[%clk 0:12:22]} 28. f4 {[%clk
0:18:57]} 28... e5 {[%clk 0:10:41]} 29. fxe5 {[%clk 0:15:50]} 29... dxe5 {[%clk
0:10:28]} 30. Ne6 {[%clk 0:15:39]} 30... Rd6 {[%clk 0:07:57]} 31. Qf3 {[%clk
0:13:24]} 31... Nxe6 {[%clk 0:06:43]} 32. Qf5+ {[%clk 0:12:31]} 32... Kg7 {[%clk
0:06:57]} 33. Bxe6 {[%clk 0:11:08]} 33... Rxc1+ {[%clk 0:06:46]} 34. Rxc1 {[%clk
0:11:24]} 34... Rxe6 {[%clk 0:06:41]} 35. Qxe6 {[%clk 0:06:50]} 35... Qxe4+
{[%clk 0:07:04]} 36. Ka1 {[%clk 0:07:14]} 36... Nc2+ {[%clk 0:07:15]} 37. Ka2
{[%clk 0:07:11]} 37... Nb4+ {[%clk 0:07:17]} 38. Ka3 {[%clk 0:07:08]} 38... Nc2+
{[%clk 0:07:26]} 39. Rxc2 {[%clk 0:07:07]} 39... Qxc2 {[%clk 0:07:49]} 40. Qe7+
{[%clk 0:07:08]} 40... Kg8 {[%clk 0:08:04]} 41. Qxf6 {[%clk 0:04:58]} 41... Qb1
{[%clk 0:05:48]} 42. Qe6+ {[%clk 0:04:08]} 42... Kh7 {[%clk 0:04:49]} 43. Qe7+
{[%clk 0:03:24]} 43... Kg8 {[%clk 0:04:55]} 44. Qd8+ {[%clk 0:03:19]} 44... Kh7
{[%clk 0:05:06]} 45. Qe7+ {[%clk 0:03:05]} 45... Kg8 {[%clk 0:05:30]} 46. Qe6+
{[%clk 0:03:16]} 46... Kh7 {[%clk 0:05:47]} 47. Qd7+ {[%clk 0:03:12]} 47... Kg8
{[%clk 0:06:06]} 48. Qc8+ {[%clk 0:03:13]} 48... Kh7 {[%clk 0:05:59]} 49. Qb7+
{[%clk 0:03:27]} 1/2-1/2

[Variant "Standard"]
[Site "Europe Echecs"]

[Event "Championnat du monde jeunes U12F"]
[Date "2024.11.24"]
[White "Aadya Ranganath"]
[Black "Siskou, Evangelia"]
[WhiteElo "1753"]
[BlackElo "1884"]
[Round "9.9"]
[Result "1/2-1/2"]
[TimeControl "5400+30"]

1. e4 {[%clk 1:30:58]} 1... c5 {[%clk 1:30:51]} 2. Nf3 {[%clk 1:31:23]} 2... Nc6
{[%clk 1:31:15]} 3. d4 {[%clk 1:31:49]} 3... cxd4 {[%clk 1:31:39]} 4. Nxd4
{[%clk 1:32:15]} 4... g6 {[%clk 1:31:54]} 5. c4 {[%clk 1:32:40]} 5... Bg7 {[%clk
1:32:16]} 6. Be3 {[%clk 1:33:06]} 6... Nf6 {[%clk 1:32:37]} 7. Nc3 {[%clk
1:33:30]} 7... O-O {[%clk 1:32:52]} 8. Be2 {[%clk 1:33:36]} 8... d6 {[%clk
1:33:17]} 9. O-O {[%clk 1:33:58]} 9... Bd7 {[%clk 1:33:43]} 10. Kh1 {[%clk
1:33:07]} 10... Nxd4 {[%clk 1:33:58]} 11. Bxd4 {[%clk 1:33:27]} 11... Bc6 {[%clk
1:34:18]} 12. Bd3 {[%clk 1:30:53]} 12... Nd7 {[%clk 1:29:07]} 13. Bxg7 {[%clk
1:29:46]} 13... Kxg7 {[%clk 1:29:34]} 14. b4 {[%clk 1:29:03]} 14... Nb6 {[%clk
1:23:40]} 15. a4 {[%clk 1:21:25]} 15... a5 {[%clk 1:21:46]} 16. b5 {[%clk
1:20:21]} 16... Bd7 {[%clk 1:22:09]} 17. Rc1 {[%clk 1:18:56]} 17... Rc8 {[%clk
1:21:50]} 18. Nd5 {[%clk 1:16:06]} 18... Nxd5 {[%clk 1:16:24]} 19. cxd5 {[%clk
1:14:54]} 19... Qb6 {[%clk 1:16:02]} 20. Bc4 {[%clk 1:08:44]} 20... Rc7 {[%clk
1:13:13]} 21. Qe2 {[%clk 1:02:33]} 21... Qd4 {[%clk 1:10:31]} 22. Rfd1 {[%clk
0:54:46]} 22... Qf6 {[%clk 1:08:31]} 23. f3 {[%clk 0:47:13]} 23... Rfc8 {[%clk
1:07:14]} 24. Rc2 {[%clk 0:42:12]} 24... e6 {[%clk 0:57:12]} 25. h3 {[%clk
0:36:16]} 25... exd5 {[%clk 0:55:53]} 26. exd5 {[%clk 0:35:47]} 26... Bf5 {[%clk
0:52:07]} 27. Rcc1 {[%clk 0:36:01]} 27... Qh4 {[%clk 0:49:26]} 28. Qb2+ {[%clk
0:32:46]} 28... Kg8 {[%clk 0:47:04]} 29. Rd4 {[%clk 0:31:46]} 29... Qh6 {[%clk
0:36:25]} 30. Qc3 {[%clk 0:25:55]} 30... b6 {[%clk 0:31:02]} 31. f4 {[%clk
0:20:42]} 31... Qh4 {[%clk 0:23:54]} 32. Qd2 {[%clk 0:16:20]} 32... Qf6 {[%clk
0:21:54]} 33. Kh2 {[%clk 0:14:29]} 33... h5 {[%clk 0:21:19]} 34. Qe3 {[%clk
0:12:42]} 34... Re7 {[%clk 0:20:04]} 35. Qf2 {[%clk 0:11:14]} 35... Rc5 {[%clk
0:18:43]} 36. Qd2 {[%clk 0:08:46]} 36... Kg7 {[%clk 0:16:32]} 37. Qf2 {[%clk
0:08:22]} 37... Re4 {[%clk 0:14:56]} 38. Rxe4 {[%clk 0:08:30]} 38... Bxe4 {[%clk
0:15:24]} 39. Qd2 {[%clk 0:08:29]} 39... Bxd5 {[%clk 0:13:47]} 40. Bxd5 {[%clk
0:07:50]} 40... Rxd5 {[%clk 0:14:16]} 41. Qxd5 {[%clk 0:07:50]} 41... Qxf4+
{[%clk 0:14:44]} 42. g3 {[%clk 0:08:12]} 42... Qxc1 {[%clk 0:15:08]} 43. Qxd6
{[%clk 0:08:21]} 43... Qe3 {[%clk 0:15:23]} 44. Kg2 {[%clk 0:07:53]} 44... Qe6
{[%clk 0:13:12]} 45. Qd4+ {[%clk 0:07:34]} 45... Qf6 {[%clk 0:13:41]} 46. Qe3
{[%clk 0:07:07]} 46... g5 {[%clk 0:13:13]} 47. Qe4 {[%clk 0:06:49]} 47... Qe6
{[%clk 0:12:56]} 48. Qd4+ {[%clk 0:06:04]} 48... f6 {[%clk 0:12:27]} 49. Qc3
{[%clk 0:04:58]} 49... Qe2+ {[%clk 0:12:08]} 50. Kg1 {[%clk 0:05:11]} 50... Kg6
{[%clk 0:12:17]} 51. Qc6 {[%clk 0:04:54]} 51... Qe3+ {[%clk 0:12:37]} 52. Kg2
{[%clk 0:05:20]} 52... h4 {[%clk 0:11:26]} 53. gxh4 {[%clk 0:04:09]} 53... gxh4
{[%clk 0:11:54]} 54. Qd6 {[%clk 0:04:03]} 54... Kg5 {[%clk 0:09:10]} 55. Qd5+
{[%clk 0:04:12]} 55... f5 {[%clk 0:08:23]} 56. Qd8+ {[%clk 0:04:19]} 56... Kh5
{[%clk 0:08:36]} 57. Qd1+ {[%clk 0:03:59]} 57... Kg6 {[%clk 0:08:01]} 58. Qd6+
{[%clk 0:04:18]} 58... Kf7 {[%clk 0:07:51]} 59. Qd7+ {[%clk 0:04:15]} 59... Kg6
{[%clk 0:07:46]} 60. Qd6+ {[%clk 0:04:38]} 60... Kh5 {[%clk 0:08:02]} 61. Qd1+
{[%clk 0:05:03]} 61... Kh6 {[%clk 0:07:32]} 62. Qd6+ {[%clk 0:05:22]} 62... Kg7
{[%clk 0:05:03]} 63. Qd7+ {[%clk 0:05:34]} 63... Kf6 {[%clk 0:03:26]} 64. Qd6+
{[%clk 0:05:01]} 64... Qe6 {[%clk 0:03:06]} 65. Qd8+ {[%clk 0:05:15]} 65... Kg6
{[%clk 0:02:49]} 66. Qxh4 {[%clk 0:05:16]} 66... Qd5+ {[%clk 0:03:05]} 67. Kh2
{[%clk 0:05:03]} 67... Qa2+ {[%clk 0:03:26]} 68. Kg1 {[%clk 0:05:13]} 68... Qb1+
{[%clk 0:03:49]} 69. Kg2 {[%clk 0:05:20]} 1/2-1/2

[Variant "Standard"]
[Site "Europe Echecs"]

[Event "Championnat du monde jeunes U12F"]
[Date "2024.11.24"]
[White "Xikmatkhonova, Mokhinur"]
[Black "Xu, Luna Yuexiu"]
[WhiteElo "1726"]
[BlackElo "1821"]
[Round "9.10"]
[Result "0-1"]
[TimeControl "5400+30"]

1. e4 {[%clk 1:30:11]} 1... c5 {[%clk 1:30:52]} 2. Nf3 {[%clk 1:30:39]} 2... d6
{[%clk 1:31:13]} 3. d4 {[%clk 1:31:05]} 3... cxd4 {[%clk 1:31:35]} 4. Nxd4
{[%clk 1:31:33]} 4... Nf6 {[%clk 1:31:53]} 5. Nc3 {[%clk 1:31:50]} 5... a6
{[%clk 1:32:19]} 6. Bg5 {[%clk 1:32:10]} 6... e6 {[%clk 1:32:41]} 7. f4 {[%clk
1:32:32]} 7... Be7 {[%clk 1:32:50]} 8. Qf3 {[%clk 1:32:34]} 8... Qc7 {[%clk
1:32:50]} 9. O-O-O {[%clk 1:32:42]} 9... Nbd7 {[%clk 1:32:52]} 10. g4 {[%clk
1:32:45]} 10... b5 {[%clk 1:32:30]} 11. Bxf6 {[%clk 1:32:48]} 11... Nxf6 {[%clk
1:31:58]} 12. g5 {[%clk 1:33:03]} 12... Nd7 {[%clk 1:31:58]} 13. f5 {[%clk
1:32:31]} 13... Nc5 {[%clk 1:22:00]} 14. Rg1 {[%clk 1:00:50]} 14... Bb7 {[%clk
1:21:14]} 15. b4 {[%clk 0:51:32]} 15... e5 {[%clk 1:21:15]} 16. Ndxb5 {[%clk
0:36:31]} 16... axb5 {[%clk 1:21:37]} 17. Nxb5 {[%clk 0:36:40]} 17... Qb6 {[%clk
1:21:49]} 18. bxc5 {[%clk 0:33:19]} 18... Qxc5 {[%clk 1:22:08]} 19. Qb3 {[%clk
0:27:30]} 19... Bxe4 {[%clk 1:15:19]} 20. f6 {[%clk 0:19:45]} 20... gxf6 {[%clk
1:14:00]} 21. Bc4 {[%clk 0:18:05]} 21... Rc8 {[%clk 1:11:52]} 22. Qa4 {[%clk
0:11:42]} 22... Bxc2 {[%clk 1:05:48]} 23. Kxc2 {[%clk 0:06:10]} 23... Qxc4+
{[%clk 1:06:05]} 24. Qxc4 {[%clk 0:06:15]} 24... Rxc4+ {[%clk 1:06:33]} 25. Kb3
{[%clk 0:06:29]} 25... Rc6 {[%clk 1:06:05]} 26. gxf6 {[%clk 0:06:09]} 26... Bxf6
{[%clk 1:06:27]} 27. Rxd6 {[%clk 0:04:52]} 27... Rxd6 {[%clk 1:06:52]} 28. Nxd6+
{[%clk 0:05:20]} 28... Ke7 {[%clk 1:06:53]} 29. Ne4 {[%clk 0:04:54]} 29... Rb8+
{[%clk 1:06:35]} 30. Kc3 {[%clk 0:04:12]} 30... Ke6 {[%clk 1:06:07]} 31. Rg2
{[%clk 0:01:15]} 31... Be7 {[%clk 1:05:43]} 32. Rb2 {[%clk 0:00:45]} 32... Rxb2
{[%clk 1:04:46]} 33. Kxb2 {[%clk 0:01:14]} 33... f5 {[%clk 1:05:08]} 34. Nf2
{[%clk 0:00:34]} 34... e4 {[%clk 1:05:24]} 35. Kc2 {[%clk 0:00:39]} 35... Ke5
{[%clk 1:05:39]} 36. Kd2 {[%clk 0:00:33]} 36... f4 {[%clk 1:05:39]} 37. Nd1
{[%clk 0:00:32]} 37... Kd4 {[%clk 1:05:51]} 38. a4 {[%clk 0:00:33]} 38... f3
{[%clk 1:05:58]} 39. Ke1 {[%clk 0:00:31]} 39... e3 {[%clk 1:06:17]} 40. Nxe3
{[%clk 0:00:31]} 40... Kxe3 {[%clk 1:06:41]} 41. Kf1 {[%clk 0:00:56]} 41... f2
{[%clk 1:06:56]} 42. a5 {[%clk 0:01:21]} 42... Bc5 {[%clk 1:07:22]} 43. a6
{[%clk 0:01:43]} 43... h5 {[%clk 1:07:43]} 44. h4 {[%clk 0:01:46]} 44... Ba7
{[%clk 1:08:07]} 0-1

[Variant "Standard"]
[Site "Europe Echecs"]

[Event "Championnat du monde jeunes U12F"]
[Date "2024.11.24"]
[White "Abak, Tuana"]
[Black "Li, Peishan"]
[WhiteElo "1806"]
[BlackElo "1729"]
[Round "9.11"]
[Result "0-1"]
[TimeControl "5400+30"]

1. e4 {[%clk 1:30:58]} 1... c5 {[%clk 1:30:57]} 2. Nf3 {[%clk 1:31:24]} 2... e6
{[%clk 1:31:22]} 3. g3 {[%clk 1:31:50]} 3... Nc6 {[%clk 1:31:02]} 4. Bg2 {[%clk
1:30:52]} 4... Nf6 {[%clk 1:30:59]} 5. Qe2 {[%clk 1:31:17]} 5... d5 {[%clk
1:29:34]} 6. exd5 {[%clk 1:31:40]} 6... Nxd5 {[%clk 1:29:57]} 7. O-O {[%clk
1:32:05]} 7... Be7 {[%clk 1:30:13]} 8. Rd1 {[%clk 1:32:31]} 8... O-O {[%clk
1:28:15]} 9. d4 {[%clk 1:32:22]} 9... cxd4 {[%clk 1:25:51]} 10. Nxd4 {[%clk
1:32:42]} 10... Nxd4 {[%clk 1:25:31]} 11. Rxd4 {[%clk 1:33:04]} 11... Bf6 {[%clk
1:23:58]} 12. Rd1 {[%clk 1:30:12]} 12... Qc7 {[%clk 1:21:30]} 13. Na3 {[%clk
1:14:51]} 13... Bd7 {[%clk 1:14:00]} 14. c4 {[%clk 1:11:29]} 14... Ne7 {[%clk
1:08:10]} 15. Be3 {[%clk 1:04:42]} 15... Nf5 {[%clk 0:59:23]} 16. Rab1 {[%clk
0:55:15]} 16... Nxe3 {[%clk 0:55:00]} 17. Qxe3 {[%clk 0:55:33]} 17... a6 {[%clk
0:54:00]} 18. b4 {[%clk 0:51:19]} 18... Ba4 {[%clk 0:42:53]} 19. Rdc1 {[%clk
0:48:20]} 19... Rad8 {[%clk 0:37:12]} 20. b5 {[%clk 0:39:37]} 20... Bd4 {[%clk
0:36:06]} 21. Qf3 {[%clk 0:38:58]} 21... Qc5 {[%clk 0:35:23]} 22. Rf1 {[%clk
0:23:23]} 22... Rd7 {[%clk 0:29:12]} 23. h3 {[%clk 0:16:27]} 23... Rfd8 {[%clk
0:28:38]} 24. Kh2 {[%clk 0:15:48]} 24... a5 {[%clk 0:22:38]} 25. h4 {[%clk
0:10:15]} 25... b6 {[%clk 0:22:42]} 26. Bh3 {[%clk 0:10:26]} 26... Bf6 {[%clk
0:22:45]} 27. Qc6 {[%clk 0:09:17]} 27... Be7 {[%clk 0:19:25]} 28. Rbe1 {[%clk
0:06:58]} 28... Qxa3 {[%clk 0:18:47]} 29. Qxb6 {[%clk 0:07:19]} 29... Qc5 {[%clk
0:17:17]} 30. Qxa5 {[%clk 0:07:33]} 30... Ra7 {[%clk 0:17:34]} 31. Qc3 {[%clk
0:07:47]} 31... Bxb5 {[%clk 0:17:47]} 32. Rc1 {[%clk 0:07:44]} 32... Bc6 {[%clk
0:17:56]} 33. Rc2 {[%clk 0:06:58]} 33... Ra3 {[%clk 0:18:00]} 34. Qb2 {[%clk
0:06:51]} 34... Rad3 {[%clk 0:17:50]} 35. Bg4 {[%clk 0:06:34]} 35... Bf6 {[%clk
0:17:18]} 36. Qb1 {[%clk 0:06:55]} 36... g6 {[%clk 0:17:00]} 37. Be2 {[%clk
0:06:28]} 37... R3d4 {[%clk 0:17:18]} 38. Kh3 {[%clk 0:06:24]} 38... Qf5+ {[%clk
0:16:45]} 39. Kh2 {[%clk 0:06:43]} 39... Bxh4 {[%clk 0:15:44]} 0-1

[Variant "Standard"]
[Site "Europe Echecs"]